fUSD/lending_fUSD_20260127
["ID","MTS","AMOUNT","RATE_DAILY","PERIOD"]
[403817049,1769554245097,-500.0,0.00017507,2]
[403817050,1769554245110,-13543.09525951,0.00017536,2]
[403817051,1769554245119,-15605.76233344,0.00017536,2]
[403817052,1769554245128,-500.0,0.00017562,2]
[403817053,1769554245139,-474.0,0.00017562,2]
[403817054,1769554245149,-440.0,0.00017562,2]
[403817055,1769554245160,-857.0,0.00017562,2]
[403817056,1769554245169,-393.00645443,0.00017562,2]
[403817057,1769554245178,-1301.71,0.0001758,2]
[403817058,1769554245187,-10900.0,0.000176,6]
[403817059,1769554245196,-155.0,0.00017611,2]
[403817060,1769554245206,-500.0,0.00017617,2]
[403817061,1769554245216,-474.0,0.00017617,2]
[403817062,1769554245225,-440.0,0.00017617,2]
[403817063,1769554245235,-857.0,0.00017617,2]
[403817064,1769554245244,-150.00227046,0.00017618,2]
[403817065,1769554245253,-3337.64360617,0.00017647,2]
[403817066,1769554245263,-5887.99894481,0.00017647,2]
[403817067,1769554245272,-8808.09428335,0.00017647,2]
[403817068,1769554245281,-11917.6596,0.00017647,2]
[403817069,1769554245291,-213.51653588,0.00017672,2]
[403817070,1769554245300,-474.0,0.00017672,2]
[403817071,1769554245310,-440.0,0.00017672,2]
[403817072,1769554245319,-857.0,0.00017672,2]
[403817073,1769554245329,-13600.0,0.000177,6]
[403817074,1769554245338,-474.0,0.00017726,2]
[403817076,1769554245348,-440.0,0.00017726,2]
[403817078,1769554245357,-857.0,0.00017726,2]
[403817079,1769554245366,-707.0,0.00017749,2]
[403817080,1769554245376,-164.968212,0.00017771,2]
[403817081,1769554245385,-474.0,0.00017781,2]
[403817082,1769554245395,-440.0,0.00017781,2]
[403817083,1769554245404,-857.0,0.00017781,2]
[403817084,1769554245414,-2700.0,0.000178,6]
[403817085,1769554245424,-500.0,0.00017808,2]
[403817086,1769554245433,-792.0,0.00017815,2]
[403817087,1769554245443,-474.0,0.00017836,2]
[403817088,1769554245452,-440.0,0.00017836,2]
[403817089,1769554245462,-857.0,0.00017836,2]
[403817090,1769554245473,-155.0,0.00017846,2]
[403817091,1769554245483,-1301.82565862,0.00017854,2]
[403817092,1769554245494,-442.617173,0.00017857,2]
[403817093,1769554245504,-500.0,0.00017863,2]
[403817094,1769554245513,-474.0,0.00017891,2]
[403817095,1769554245523,-857.0,0.00017891,2]
[403817096,1769554245531,-440.0,0.00017891,2]
[403817097,1769554245541,-707.0,0.00017899,2]
[403817098,1769554245550,-10000.0,0.000179,2]
[403817099,1769554245559,-2700.0,0.000179,6]
[403817100,1769554245568,-490.08113567,0.000179,2]
[403817101,1769554245577,-13543.09525951,0.000179,2]
[403817102,1769554245586,-461.37167774,0.000179,2]
[403817103,1769554245595,-779.8373658,0.000179,2]
[403817104,1769554245604,-15605.76233344,0.000179,2]
[403817105,1769554245614,-4780.77157911,0.000179,2]
[403817106,1769554245623,-375.19870368,0.00017918,2]
[403817107,1769554245632,-474.0,0.00017945,2]
[403817108,1769554245641,-857.0,0.00017945,2]
[403817109,1769554245654,-440.0,0.00017945,2]
[403817110,1769554245667,-500.0,0.00017973,2]
[403817111,1769554245677,-150.0,0.00017973,2]
[403817112,1769554245686,-394.91151885,0.00017973,2]
[403817113,1769554245695,-222.51635275,0.00017982,2]
[403817114,1769554245705,-499.999999,0.0001799,2]
[403817115,1769554245714,-413.81245521,0.0001799,2]
[403817116,1769554245723,-413.81245521,0.0001799,2]
[403817117,1769554245733,-413.81245521,0.0001799,2]
[403817118,1769554245743,-151.0,0.00017997,2]
[403817119,1769554245752,-150.0,0.00017999,2]
[403817120,1769554245762,-150.0,0.00017999,2]
[403817121,1769554245772,-150.0,0.00017999,2]
[403817122,1769554245781,-150.0,0.00017999,2]
[403817123,1769554245790,-150.0,0.00017999,2]
[403817124,1769554245799,-252.56738974,0.00017999,2]
[403817125,1769554245809,-394.52625559,0.00017999,2]
[403817126,1769554245819,-300.0,0.00017999,2]
[403817127,1769554245828,-300.0,0.00017999,2]
[403817128,1769554245837,-300.0,0.00017999,2]
[403817129,1769554245847,-666.0,0.00017999,2]
[403817130,1769554245856,-3932394.2951537,0.00018,2]
[403817131,1769554245866,-39378.70520578,0.00018,2]
[403817132,1769554245875,-5684.7064599,0.00018,2]
[403817133,1769554245884,-55554.28665772,0.00018,2]
[403817135,1769554246467,-1033.83778917,0.00018,2]
[403817136,1769554246479,-3101.14109984,0.00018,2]
[403817137,1769554246497,-665.84438094,0.00018,2]
[403817138,1769554246509,-446.75499982,0.00018,2]
[403817139,1769554246520,-5617.55931741,0.00018,2]
[403817140,1769554246531,-35131.03948976,0.00018,2]
[403817142,1769554246983,-314.25747137,0.00018,2]
[403817143,1769554246996,-266.44252574,0.00018,2]
[403817144,1769554247007,-881.12122902,0.00018,2]
[403817145,1769554247020,-1325.45,0.00018,2]
[403817146,1769554247187,-216.8114186,0.000179,2]
[403817147,1769554247198,-207.14439812,0.00018,2]
[403817148,1769554247211,-3412.62979512,0.00018,2]
[403817149,1769554247221,-541.54300055,0.00018,2]
[403817150,1769554247233,-464.76347741,0.00018,2]
[403817151,1769554247310,-151.0,0.00015709,2]
[403817152,1769554247320,-151.0,0.00015709,2]
[403817153,1769554247332,-380212.02312372,0.00018,2]
[403817154,1769554247344,-22437.6933177,0.00018,2]
[403817155,1769554247357,-14851.80254829,0.00018,2]
[403817156,1769554247372,-2567.47797704,0.00018,2]
[403817157,1769554247383,-1473.61697263,0.00018,2]
[403817158,1769554247396,-9580.4566829,0.00018,2]
[403817159,1769554247409,-988.49382925,0.00018,2]
[403817160,1769554247421,-5102.47102718,0.00018,2]
[403817161,1769554247431,-1236.613284,0.00018,2]
[403817162,1769554247445,-3841.42738361,0.00018,2]
[403817163,1769554247457,-882.34862883,0.00018,2]
[403817164,1769554247470,-6810.24728547,0.00018,2]
[403817165,1769554247482,-2809.71180005,0.00018,2]
[403817166,1769554247508,-5793.42327444,0.00018,2]
[403817167,1769554247519,-149564.24606462,0.00018,2]
[403817168,1769554247531,-3184.22082874,0.00018,2]
[403817170,1769554259320,1000.0,0.00014544,2]
[403817172,1769554299260,1606.1276,0.00014544,2]
[403817182,1769554373693,7393.8824,0.00014544,2]
[403817183,1769554373717,2720.2197,0.00014544,2]
[403817228,1769554594970,169.21,0.00013597,2]
[403817244,1769554616459,500.0,0.00014543,2]
[403817245,1769554617083,500.0,0.00014543,2]
[403817247,1769554618100,500.0,0.00014543,2]
[403817249,1769554618756,262.24105368,0.00014642,2]
[403817250,1769554619317,218.20148821,0.00014642,2]
[403817251,1769554619353,500.0,0.00014543,2]
[403817252,1769554620416,500.0,0.00014642,2]
[403817257,1769554621706,500.0,0.00014543,2]
[403817258,1769554622321,500.0,0.00014543,2]
[403817259,1769554622734,500.0,0.00014543,2]
[403817260,1769554622768,500.0,0.00014543,2]
[403817261,1769554622820,500.0,0.00014543,2]
[403817262,1769554622880,500.0,0.00014543,2]
[403817263,1769554622936,332.8,0.00014543,2]
[403817265,1769554622971,156.19611527,0.00014642,2]
[403817266,1769554623020,252.02097926,0.00014642,2]
[403817268,1769554625435,500.0,0.00014543,2]
[403817276,1769554640288,500.0,0.00014543,2]
[403817277,1769554640331,500.0,0.00014543,2]
[403817278,1769554640388,500.0,0.00014543,2]
[403817279,1769554640436,531.17875235,0.00014543,2]
[403817290,1769554654385,1747.37161123,0.00014201,2]
[403817291,1769554654408,7934.21838877,0.00014201,2]
[403817296,1769554656892,500.0,0.00014623,2]
[403817297,1769554656932,500.0,0.00014623,2]
[403817298,1769554656969,500.0,0.00014623,2]
[403817299,1769554657011,500.0,0.00014623,2]
[403817300,1769554657052,65.79161123,0.00014623,2]
[403817301,1769554657080,434.20838877,0.00014623,2]
[403817302,1769554657120,500.0,0.00014623,2]
[403817303,1769554657164,500.0,0.00014623,2]
[403817304,1769554657707,500.0,0.00014623,2]
[403817305,1769554657745,500.0,0.00014623,2]
[403817306,1769554657785,500.0,0.00014623,2]
[403817307,1769554657827,500.0,0.00014623,2]
[403817308,1769554657867,500.0,0.00014623,2]
[403817309,1769554657904,500.0,0.00014623,2]
[403817310,1769554657966,599.99999999,0.00014623,2]
[403817311,1769554658007,500.0,0.00014623,2]
[403817312,1769554658044,500.0,0.00014623,2]
[403817313,1769554658779,500.0,0.00014623,2]
[403817314,1769554658836,500.0,0.00014623,2]
[403817315,1769554658881,500.0,0.00014623,2]
[403817316,1769554658920,500.0,0.00014623,2]
[403817317,1769554658962,500.0,0.00014623,2]
[403817351,1769554725119,152.74104175,0.00014636,2]
[403817352,1769554726792,183.56873758,0.00014636,2]
[403817353,1769554727130,526.41468548,0.00014636,2]
[403817354,1769554727593,218.82124764,0.00014623,2]
[403817358,1769554746865,254.24583072,0.00014542,2]
[403817359,1769554746997,130.01006807,0.00014542,2]
[403817360,1769554747029,385.68993193,0.00014542,2]
[403817362,1769554762881,500.0,0.00014542,2]
[403817363,1769554762918,152.69329217,0.00014542,2]
[403817364,1769554762953,500.0,0.00014542,2]
[403817365,1769554762994,500.0,0.00014542,2]
[403817366,1769554763028,500.0,0.00014542,2]
[403817367,1769554763063,500.0,0.00014542,2]
[403817368,1769554763101,500.0,0.00014542,2]
[403817369,1769554763140,500.0,0.00014542,2]
[403817378,1769554827273,368.49027984,0.00014987,2]
[403817381,1769554852961,285.14069897,0.00014987,2]
[403817382,1769554853087,151.0,0.00014987,2]
[403817384,1769554856143,151.0,0.00014987,2]
[403817385,1769554856447,151.0,0.00014987,2]
[403817407,1769555048668,535.257121,7.945e-05,2]
[403817421,1769555142069,-195.0,0.00015914,2]
[403817426,1769555190544,166.66,0.0001526,2]
[403817427,1769555190610,166.66,0.00015582,2]
[403817428,1769555190684,166.66,0.00015903,2]
[403817429,1769555257917,150.0,0.00015622,2]
[403817436,1769555432536,-151.0,0.0001597,2]
[403817437,1769555432547,-151.0,0.0001597,2]
[403817438,1769555432556,-151.0,0.00015972,2]
[403817439,1769555432566,-151.0,0.00015972,2]
[403817440,1769555432576,-11.75560064,0.00016141,2]
[403817441,1769555432587,-138.24523973,0.00016141,2]
[403817442,1769555432596,-300.0,0.00016211,2]
[403817443,1769555432606,-61.75476027,0.00016211,2]
[403817445,1769555432636,-1051.24523973,0.00016211,2]
[403817446,1769555432645,-306.389,0.00016212,2]
[403817447,1769555432655,-500.0,0.00016212,2]
[403817448,1769555432665,-500.0,0.00016212,2]
[403817449,1769555432674,-500.0,0.00016212,2]
[403817450,1769555432683,-500.0,0.00016212,2]
[403817451,1769555432692,-500.0,0.00016212,2]
[403817452,1769555432702,-1000.0,0.00016213,2]
[403817453,1769555432711,-1500.0,0.00016223,2]
[403817454,1769555432720,-166.66,0.00016224,2]
[403817455,1769555432730,-500.0,0.0001627,2]
[403817456,1769555432739,-550.0,0.00016343,2]
[403817457,1769555432749,-151.60897952,0.00016343,2]
[403817458,1769555432760,-7975.28,0.00016344,2]
[403817459,1769555432774,-5900.07,0.00016344,2]
[403817460,1769555432784,-9999.99,0.00016344,2]
[403817461,1769555432793,-150.99,0.00016344,2]
[403817462,1769555432802,-999.99,0.00016344,2]
[403817463,1769555432812,-65.578289,0.00016344,2]
[403817464,1769555432823,-85.411711,0.00016344,2]
[403817465,1769555432833,-1701.15945441,0.00016344,2]
[403817466,1769555432882,-609.8984744,0.00016344,2]
[403817467,1769555432894,-696.56392447,0.00016344,2]
[403817468,1769555438104,-151.0,0.00015973,2]
[403817469,1769555438114,-151.0,0.00015973,2]
[403817470,1769555438123,-640.2,0.00016344,2]
[403817471,1769555438135,-388.36251769,0.00016344,2]
[403817472,1769555438163,-4072.54660512,0.00016344,2]
[403817473,1769555438224,-1891.25902391,0.00016344,2]
[403817474,1769555438234,-662.72704023,0.00016344,2]
[403817475,1769555438245,-1401.67165976,0.00016344,2]
[403817476,1769555438375,-7935.59130001,0.00016344,2]
[403817477,1769555438386,-299.99,0.00016344,4]
[403817478,1769555438395,-3400.7,0.00016344,2]
[403817479,1769555438406,-7758.2,0.00016425,2]
[403817480,1769555438415,-151.0,0.00016428,2]
[403817481,1769555438424,-151.0,0.00016428,2]
[403817482,1769555438434,-151.0,0.00016428,2]
[403817483,1769555438443,-151.0,0.00016428,2]
[403817484,1769555438453,-151.0,0.00016428,2]
[403817485,1769555438466,-151.0,0.00016428,2]
[403817487,1769555438475,-151.0,0.00016428,2]
[403817489,1769555438485,-159.97891148,0.00016428,2]
[403817491,1769555438494,-200.0,0.00016428,2]
[403817493,1769555438503,-151.0,0.00016428,2]
[403817495,1769555438513,-151.0,0.00016428,2]
[403817497,1769555438523,-151.0,0.00016428,2]
[403817498,1769555438532,-151.0,0.00016428,2]
[403817499,1769555438544,-151.0,0.00016428,2]
[403817500,1769555438553,-151.0,0.00016428,2]
[403817501,1769555438563,-151.0,0.00016428,2]
[403817502,1769555438573,-212.90134979,0.00016428,2]
[403817503,1769555438583,-257.94319588,0.00016436,2]
[403817504,1769555438593,-21748.92,0.00016437,2]
[403817505,1769555438603,-213.71460254,0.00016438,2]
[403817506,1769555438612,-500.0,0.00016438,2]
[403817507,1769555438623,-500.0,0.00016438,2]
[403817508,1769555438634,-500.0,0.00016438,2]
[403817509,1769555438643,-500.0,0.00016438,2]
[403817511,1769555438653,-500.0,0.00016438,2]
[403817513,1769555438663,-500.0,0.00016438,2]
[403817515,1769555438672,-500.0,0.00016438,2]
[403817517,1769555438682,-500.0,0.00016438,2]
[403817520,1769555438691,-500.0,0.00016438,2]
[403817522,1769555438700,-500.0,0.00016438,2]
[403817524,1769555438710,-500.0,0.00016438,2]
[403817526,1769555438719,-500.0,0.00016438,2]
[403817528,1769555438728,-500.0,0.00016438,2]
[403817529,1769555438738,-500.0,0.00016438,2]
[403817531,1769555438747,-500.0,0.00016438,2]
[403817533,1769555438756,-500.0,0.00016438,2]
[403817536,1769555438766,-500.0,0.00016438,2]
[403817537,1769555438775,-500.0,0.00016438,2]
[403817539,1769555438784,-500.0,0.00016438,2]
[403817542,1769555438793,-500.0,0.00016438,2]
[403817543,1769555438802,-500.0,0.00016438,2]
[403817545,1769555438812,-500.0,0.00016438,2]
[403817548,1769555438821,-500.0,0.00016438,2]
[403817549,1769555438831,-500.0,0.00016438,2]
[403817551,1769555438840,-500.0,0.00016438,2]
[403817554,1769555438851,-301.41733307,0.00016438,2]
[403817555,1769555438860,-56746.54,0.00016438,2]
[403817557,1769555438870,-520.7,0.00016438,2]
[403817559,1769555438879,-166.66,0.00016545,2]
[403817561,1769555438888,-255.0,0.00016602,2]
[403817563,1769555438898,-314.0,0.00016627,2]
[403817566,1769555438908,-520.7,0.00016712,2]
[403817567,1769555438917,-389.39,0.00016734,2]
[403817569,1769555438927,-389.39,0.0001676,2]
[403817571,1769555438937,-389.39,0.00016786,2]
[403817573,1769555438946,-150.0,0.00016811,2]
[403817574,1769555438955,-389.39,0.00016813,2]
[403817575,1769555438964,-389.39,0.00016839,2]
[403817576,1769555438973,-389.39,0.00016866,2]
[403817577,1769555438983,-166.66,0.00016867,2]
[403817578,1769555438992,-389.39,0.00016892,2]
[403817579,1769555439001,-301.44,0.00016903,2]
[403817580,1769555439011,-389.39,0.00016919,2]
[403817581,1769555439021,-200.0,0.00016941,2]
[403817582,1769555439033,-262.0,0.00016941,2]
[403817583,1769555439043,-389.39,0.00016945,2]
[403817584,1769555439053,-1000.0,0.0001696,2]
[403817585,1769555439062,-389.39,0.00016971,2]
[403817586,1769555439073,-520.7,0.00016986,2]
[403817587,1769555439083,-166.25,0.00016995,2]
[403817588,1769555439092,-389.39,0.00016998,2]
[403817589,1769555439102,-250.0,0.00017,2]
[403817590,1769555439112,-464.6,0.0001702,2]
[403817591,1769555439122,-389.39,0.00017024,2]
[403817592,1769555439131,-389.39,0.00017051,2]
[403817593,1769555439141,-389.39,0.00017077,2]
[403817594,1769555439150,-319.0,0.00017092,2]
[403817595,1769555439159,-389.39,0.00017103,2]
[403817596,1769555439168,-389.39,0.0001713,2]
[403817597,1769555439179,-389.39,0.00017156,2]
[403817598,1769555439188,-500.0,0.00017178,2]
[403817599,1769555439198,-500.0,0.00017178,2]
[403817600,1769555439207,-500.0,0.00017178,2]
[403817601,1769555439217,-150.0,0.00017178,2]
[403817602,1769555439227,-500.0,0.00017178,2]
[403817603,1769555439237,-500.0,0.00017178,2]
[403817604,1769555439246,-150.0,0.00017178,2]
[403817605,1769555439255,-389.39,0.00017183,2]
[403817606,1769555439265,-1008.04,0.00017185,2]
[403817607,1769555439275,-389.39,0.00017209,2]
[403817608,1769555439284,-500.0,0.00017233,2]
[403817609,1769555439295,-500.0,0.00017233,2]
[403817610,1769555439304,-500.0,0.00017233,2]
[403817611,1769555439314,-500.0,0.00017233,2]
[403817612,1769555439323,-500.0,0.00017233,2]
[403817613,1769555439333,-389.39,0.00017235,2]
[403817614,1769555439343,-520.7,0.0001726,2]
[403817615,1769555439353,-500.0,0.00017288,2]
[403817616,1769555439362,-500.0,0.00017288,2]
[403817617,1769555439371,-500.0,0.00017288,2]
[403817618,1769555439380,-500.0,0.00017288,2]
[403817619,1769555439390,-500.0,0.00017288,2]
[403817620,1769555439400,-150.0,0.00017288,2]
[403817621,1769555439409,-464.0,0.00017288,2]
[403817622,1769555439418,-500.0,0.00017288,2]
[403817623,1769555439427,-500.0,0.00017342,2]
[403817624,1769555439437,-500.0,0.00017342,2]
[403817625,1769555439446,-500.0,0.00017342,2]
[403817626,1769555439456,-500.0,0.00017342,2]
[403817627,1769555439469,-500.0,0.00017342,2]
[403817628,1769555439478,-150.0,0.00017343,2]
[403817629,1769555439487,-500.0,0.00017343,2]
[403817630,1769555439496,-464.0,0.00017343,2]
[403817631,1769555439507,-500.0,0.00017397,2]
[403817632,1769555439516,-500.0,0.00017397,2]
[403817633,1769555439525,-500.0,0.00017397,2]
[403817634,1769555439535,-500.0,0.00017397,2]
[403817635,1769555439544,-500.0,0.00017397,2]
[403817636,1769555439553,-200.0,0.00017398,2]
[403817637,1769555439563,-593.13448031,0.00017398,2]
[403817638,1769555439572,-464.0,0.00017398,2]
[403817639,1769555439582,-500.0,0.00017452,2]
[403817640,1769555439591,-500.0,0.00017452,2]
[403817641,1769555439600,-500.0,0.00017452,2]
[403817642,1769555439610,-500.0,0.00017452,2]
[403817643,1769555439619,-393.00645443,0.00017452,2]
[403817644,1769555439628,-464.0,0.00017452,2]
[403817645,1769555439638,-935.0,0.00017455,2]
[403817646,1769555439647,-150.00084037,0.00017486,2]
[403817647,1769555439656,-1900.0,0.000175,6]
[403817648,1769555439667,-500.0,0.00017507,2]
[403817649,1769555439676,-403.40923612,0.00017507,2]
[403817650,1769555439685,-500.0,0.00017507,2]
[403817651,1769555439695,-500.0,0.00017507,2]
[403817652,1769555439704,-464.0,0.00017507,2]
[403817653,1769555439713,-520.73565862,0.00017534,2]
[403817654,1769555439722,-500.0,0.00017562,2]
[403817655,1769555439731,-500.0,0.00017562,2]
[403817656,1769555439740,-500.0,0.00017562,2]
[403817657,1769555439750,-464.0,0.00017562,2]
[403817658,1769555439760,-195.0,0.00017567,2]
[403817659,1769555439769,-303.5791788,0.00017567,2]
[403817660,1769555439778,-200.0,0.00017567,2]
[403817661,1769555439787,-288.33164901,0.00017568,2]
[403817662,1769555439797,-1000.0,0.00017596,2]
[403817663,1769555439806,-3800.0,0.000176,6]
[403817664,1769555439816,-500.0,0.00017616,2]
[403817665,1769555439825,-500.0,0.00017616,2]
[403817666,1769555439835,-500.0,0.00017616,2]
[403817667,1769555439845,-464.0,0.00017617,2]
[403817668,1769555439855,-200.0,0.00017626,2]
[403817669,1769555439865,-239.88573265,0.00017626,2]
[403817670,1769555439876,-500.0,0.00017626,2]
[403817671,1769555439886,-150.0,0.00017626,2]
[403817672,1769555439897,-229.5686788,0.00017626,2]
[403817673,1769555439906,-150.0,0.00017626,2]
[403817674,1769555439915,-500.0,0.00017626,2]
[403817675,1769555439924,-150.0,0.00017626,2]
[403817676,1769555439935,-500.0,0.00017626,2]
[403817677,1769555439945,-500.0,0.00017626,2]
[403817678,1769555439955,-500.0,0.00017626,2]
[403817679,1769555439965,-380.0,0.00017657,2]
[403817680,1769555439976,-500.0,0.00017671,2]
[403817681,1769555439987,-500.0,0.00017671,2]
[403817682,1769555439998,-500.0,0.00017671,2]
[403817683,1769555440009,-464.0,0.00017672,2]
[403817684,1769555440018,-380.0,0.00017675,2]
[403817685,1769555440027,-500.0,0.00017681,2]
[403817686,1769555440038,-150.0,0.00017681,2]
[403817687,1769555440047,-150.0,0.00017681,2]
[403817688,1769555440058,-500.0,0.00017681,2]
[403817689,1769555440068,-150.0,0.00017681,2]
[403817690,1769555440078,-500.0,0.00017681,2]
[403817691,1769555440087,-500.0,0.00017681,2]
[403817692,1769555440097,-500.0,0.00017681,2]
[403817693,1769555440107,-380.0,0.00017687,2]
[403817694,1769555440116,-5700.0,0.000177,6]
[403817695,1769555440126,-500.0,0.00017726,2]
[403817696,1769555440137,-500.0,0.00017726,2]
[403817697,1769555440146,-500.0,0.00017726,2]
[403817698,1769555440155,-464.0,0.00017726,2]
[403817699,1769555440165,-202.0,0.0001773,2]
[403817700,1769555440174,-500.0,0.00017736,2]
[403817701,1769555440185,-150.0,0.00017736,2]
[403817702,1769555440195,-200.0,0.00017736,2]
[403817703,1769555440205,-500.0,0.00017736,2]
[403817704,1769555440214,-200.0,0.00017736,2]
[403817705,1769555440223,-500.0,0.00017736,2]
[403817706,1769555440233,-500.0,0.00017736,2]
[403817707,1769555440242,-223.2315926,0.00017736,2]
[403817708,1769555440252,-500.0,0.00017781,2]
[403817709,1769555440267,-500.0,0.00017781,2]
[403817710,1769555440276,-363.39557034,0.00017781,2]
[403817711,1769555440286,-464.0,0.00017781,2]
[403817712,1769555440297,-500.0,0.0001779,2]
[403817713,1769555440307,-221.51596019,0.0001779,2]
[403817714,1769555440316,-500.0,0.0001779,2]
[403817715,1769555440326,-500.0,0.0001779,2]
[403817716,1769555440335,-500.0,0.0001779,2]
[403817717,1769555440344,-3879.66829508,0.000178,2]
[403817718,1769555440353,-490.08113567,0.000178,2]
[403817719,1769555440362,-7600.0,0.000178,6]
[403817720,1769555440371,-500.0,0.00017808,2]
[403817721,1769555440380,-2432.44498612,0.0001783,2]
[403817722,1769555440388,-202.0,0.00017833,2]
[403817723,1769555440397,-500.0,0.00017836,2]
[403817724,1769555440406,-500.0,0.00017836,2]
[403817725,1769555440415,-464.0,0.00017836,2]
[403817726,1769555440424,-213.51653588,0.00017845,2]
[403817727,1769555440433,-500.0,0.00017845,2]
[403817728,1769555440442,-500.0,0.00017845,2]
[403817729,1769555440451,-500.0,0.00017845,2]
[403817730,1769555440460,-1219.30120694,0.00017854,2]
[403817731,1769555440473,-3217.75517635,0.00017854,2]
[403817732,1769555440482,-5676.50154379,0.00017854,2]
[403817733,1769555440491,-8491.70682025,0.00017854,2]
[403817734,1769555440500,-500.0,0.00017863,2]
[403817735,1769555440510,-380.0,0.00017882,2]
[403817736,1769555440520,-413.81245521,0.0001789,2]
[403817737,1769555440529,-500.0,0.0001789,2]
[403817738,1769555440539,-642.92574143,0.0001789,2]
[403817739,1769555440556,-464.0,0.00017891,2]
[403817760,1769555440908,-3879.66829506,0.00017892,2]
[403817761,1769555440918,-151.0,0.00017897,2]
[403817762,1769555440929,-199.53666779,0.00017899,2]
[403817763,1769555441251,-461.37167774,0.000178,2]
[403817764,1769555441260,-300.46333221,0.00017899,2]
[403817765,1769555441269,-2675.01775678,0.00017899,2]
[403817766,1769555441280,-333.26194966,0.00017899,2]
[403817767,1769555441301,-1279.2779985,0.00017899,2]
[403817768,1769555441312,-893.23,0.00017899,2]
[403817769,1769555441323,-109480.50612153,0.00017899,2]
[403817770,1769555441332,-500.0,0.000179,2]
[403817771,1769555441341,-500.0,0.000179,2]
[403817772,1769555441350,-500.0,0.000179,2]
[403817773,1769555441359,-169.8659048,0.000179,2]
[403817774,1769555441368,-10130.6755,0.000179,2]
[403817775,1769555441377,-1000000.0,0.000179,2]
[403817776,1769555441386,-4399.6317,0.000179,2]
[403817777,1769555441395,-9600.0,0.000179,6]
[403817778,1769555441404,-575.9921483,0.000179,2]
[403817779,1769555441413,-4782.59337221,0.000179,2]
[403817780,1769555441422,-779.8373658,0.000179,2]
[403817781,1769555441430,-216.81141859,0.000179,2]
[403817782,1769555441439,-195.58150189,0.000179,3]
[403817783,1769555441449,-1277.9078,0.00017913,2]
[403817784,1769555441459,-380.0,0.00017913,2]
[403817785,1769555441473,-375.19870368,0.00017918,2]
[403817786,1769555441482,-380.0,0.00017934,2]
[403817787,1769555441491,-377.26751797,0.00017945,2]
[403817788,1769555441500,-464.0,0.00017946,2]
[403817789,1769555441510,-380.0,0.00017951,2]
[403817790,1769555441520,-500.0,0.00017955,2]
[403817791,1769555441529,-500.0,0.00017955,2]
[403817792,1769555441540,-500.0,0.00017955,2]
[403817793,1769555441549,-607.585385,0.00017958,2]
[403817794,1769555441558,-500.0,0.00017973,2]
[403817795,1769555441566,-150.0,0.00017973,2]
[403817796,1769555441575,-222.51635275,0.00017982,2]
[403817797,1769555441584,-3879.66829506,0.00017983,2]
[403817798,1769555441594,-413.81245521,0.0001799,2]
[403817799,1769555441602,-151.0,0.00017997,2]
[403817800,1769555441612,-151.0,0.00017997,2]
[403817801,1769555441621,-151.0,0.00017997,2]
[403817802,1769555441630,-190.42821464,0.00017997,2]